fUST/lending_fUST_20250720
["ID","MTS","AMOUNT","RATE_DAILY","PERIOD"]
[373500144,1753023054684,-2376.67944384,0.000223,2]
[373500146,1753023054694,-160.0,0.000223,3]
[373500148,1753023054704,-10628.65177353,0.000223,2]
[373500150,1753023054714,-199.16135147,0.0002232,4]
[373500153,1753023054725,-262.99041966,0.00022369,2]
[373500155,1753023054735,-313609.622137,0.000224,7]
[373500157,1753023054745,-151.0,0.000224,7]
[373500159,1753023054755,-151.0,0.000224,7]
[373500161,1753023054765,-151.0,0.000224,7]
[373500163,1753023054774,-155.991271,0.000224,7]
[373500165,1753023054784,-151.0,0.000224,7]
[373500167,1753023054793,-191.36,0.000224,7]
[373500169,1753023054803,-599.530675,0.000224,7]
[373500170,1753023054813,-599.530675,0.000224,7]
[373500172,1753023054824,-168.342639,0.000224,7]
[373500174,1753023054835,-151.0,0.000224,7]
[373500177,1753023054845,-151.0,0.000224,7]
[373500178,1753023054854,-153.370387,0.000224,7]
[373500181,1753023054864,-151.0,0.000224,7]
[373500183,1753023054873,-202.285688,0.000224,7]
[373500184,1753023054883,-202.285688,0.000224,7]
[373500187,1753023054892,-151.0,0.000224,7]
[373500189,1753023054903,-351.052043,0.000224,7]
[373500191,1753023054912,-160.0,0.000224,7]
[373500193,1753023054922,-351.052043,0.000224,7]
[373500195,1753023054932,-151.0,0.000224,7]
[373500197,1753023054942,-214.5637056,0.000224,7]
[373500199,1753023054952,-151.0,0.000224,7]
[373500201,1753023054962,-1000.0,0.00022421,2]
[373500203,1753023054971,-1000.0,0.00022421,2]
[373500205,1753023054981,-500.0,0.00022421,2]
[373500207,1753023054991,-1075.75147067,0.00022421,2]
[373500209,1753023055001,-438.26160143,0.00022465,7]
[373500211,1753023055011,-1596.5,0.00022465,2]
[373500212,1753023055021,-2392.5,0.00022465,2]
[373500215,1753023055031,-1046.66,0.00022465,2]
[373500217,1753023055040,-641.43,0.00022465,2]
[373500219,1753023055051,-465.64,0.00022465,2]
[373500221,1753023055060,-493.01,0.00022465,2]
[373500222,1753023055070,-545.69392871,0.00022465,2]
[373500225,1753023055081,-2017.06,0.00022465,2]
[373500227,1753023055090,-993.92,0.00022465,2]
[373500229,1753023055100,-471.17,0.00022465,2]
[373500231,1753023055110,-1985.29,0.00022465,2]
[373500232,1753023055119,-464.4,0.00022465,2]
[373500234,1753023055129,-1900.71,0.00022465,2]
[373500236,1753023055139,-1227.97,0.00022465,2]
[373500239,1753023055149,-532.58,0.00022465,2]
[373500241,1753023055161,-471.67,0.00022465,2]
[373500242,1753023055170,-602.73,0.00022465,2]
[373500244,1753023055181,-1681.56,0.00022465,2]
[373500247,1753023055191,-1600.4,0.00022465,2]
[373500249,1753023055202,-498.85,0.00022465,2]
[373500251,1753023055213,-570.05,0.00022465,2]
[373500253,1753023055224,-1384.24,0.00022465,2]
[373500255,1753023055234,-1489.64,0.00022465,2]
[373500257,1753023055243,-337.26513318,0.00022465,2]
[373500279,1753023055506,-460.0,0.00016438,2]
[373500280,1753023055518,-500.0,0.00016711,2]
[373500281,1753023055528,-500.0,0.00016711,2]
[373500282,1753023055538,-500.0,0.00016711,2]
[373500283,1753023055547,-500.0,0.00016711,2]
[373500284,1753023055557,-500.0,0.00016711,2]
[373500285,1753023055568,-500.0,0.00016711,2]
[373500286,1753023055577,-444.65541495,0.00016711,2]
[373500287,1753023055587,-500.0,0.00016711,2]
[373500288,1753023055597,-500.0,0.00016711,2]
[373500289,1753023055607,-500.0,0.00016711,2]
[373500291,1753023055617,-500.0,0.00016711,2]
[373500292,1753023055626,-79.02477918,0.00016711,2]
[373500294,1753023055639,-303.43,0.00016711,2]
[373500305,1753023055738,-117.54522082,0.00016711,2]
[373500307,1753023055749,-500.0,0.00016711,2]
[373500310,1753023055759,-252.45477918,0.00016712,2]
[373500312,1753023055771,-207.54522082,0.00016712,2]
[373500314,1753023055782,-460.0,0.00016712,2]
[373500316,1753023055792,-460.0,0.00016986,2]
[373500318,1753023055802,-460.0,0.00016986,2]
[373500320,1753023055813,-460.0,0.0001726,2]
[373500322,1753023055823,-460.0,0.0001726,2]
[373500324,1753023055834,-460.0,0.00017534,2]
[373500326,1753023055843,-460.0,0.00017534,2]
[373500328,1753023055853,-460.0,0.00017808,2]
[373500330,1753023055863,-460.0,0.00017808,2]
[373500332,1753023055873,-460.0,0.00018082,2]
[373500334,1753023055883,-460.0,0.00018082,2]
[373500336,1753023055893,-187.27461988,0.00018356,2]
[373500339,1753023055906,-272.72538012,0.00018356,2]
[373500341,1753023055917,-460.0,0.0001863,2]
[373500343,1753023055927,-460.0,0.00018904,2]
[373500345,1753023055937,-168.86867094,0.00019178,2]
[373500347,1753023055949,-151.0,0.0002171,2]
[373500349,1753023055959,-151.0,0.0002171,2]
[373500351,1753023055969,-151.0,0.00021984,2]
[373500354,1753023055979,-151.0,0.00022258,2]
[373500356,1753023055989,-671.793861,0.000224,7]
[373500358,1753023055999,-212.31486682,0.00022465,2]
[373500360,1753023056009,-538.47,0.00022465,2]
[373500362,1753023056019,-2286.56,0.00022465,2]
[373500364,1753023056029,-469.89,0.00022465,2]
[373500366,1753023056039,-2511.51,0.00022465,2]
[373500368,1753023056048,-425.67604837,0.00022486,7]
[373500370,1753023056066,-1638.13363699,0.00022486,7]
[373500373,1753023056079,-600.0,0.00022486,7]
[373500419,1753023056537,-460.0,0.00016438,2]
[373500421,1753023056547,-460.0,0.00016438,2]
[373500423,1753023056558,-460.0,0.00016438,2]
[373500425,1753023056567,-950.34,0.00016438,2]
[373500427,1753023056576,-460.0,0.00016438,2]
[373500429,1753023056586,-463.88,0.00016438,2]
[373500431,1753023056596,-460.0,0.00016438,2]
[373500433,1753023056606,-474.98,0.00016438,2]
[373500435,1753023056615,-460.0,0.00016712,2]
[373500437,1753023056625,-460.0,0.00016712,2]
[373500439,1753023056634,-950.34,0.00016712,2]
[373500441,1753023056644,-460.0,0.00016712,2]
[373500443,1753023056653,-463.88,0.00016712,2]
[373500445,1753023056662,-472.6425536,0.00016986,2]
[373500447,1753023056671,-460.0,0.00016986,2]
[373500449,1753023056681,-950.34,0.00016986,2]
[373500451,1753023056691,-460.0,0.00016986,2]
[373500453,1753023056700,-463.88,0.00016986,2]
[373500455,1753023056710,-460.0,0.0001726,2]
[373500457,1753023056719,-950.34,0.0001726,2]
[373500459,1753023056729,-460.0,0.00017534,2]
[373500461,1753023056739,-950.34,0.00017534,2]
[373500463,1753023056748,-460.0,0.00017808,2]
[373500465,1753023056758,-460.0,0.00018082,2]
[373500468,1753023056768,-460.0,0.00018356,2]
[373500469,1753023056777,-460.0,0.0001863,2]
[373500471,1753023056787,-460.0,0.00018904,2]
[373500473,1753023056797,-500.0,0.00019177,2]
[373500475,1753023056808,-592.85811722,0.00019177,2]
[373500477,1753023056817,-500.0,0.00019177,2]
[373500479,1753023056827,-500.0,0.00019177,2]
[373500481,1753023056838,-671.793861,0.000224,7]
[373500483,1753023056849,-41571.64394356,0.0002249,7]
[373500486,1753023056862,-550.47093946,0.0002249,7]
[373500542,1753023057418,-460.0,0.00018356,2]
[373500545,1753023057429,-1006.62666014,0.0002249,7]
[373500546,1753023057440,-199.784375,0.00022532,2]
[373500549,1753023057451,-143.61318516,0.00022532,2]
[373500551,1753023057464,-356.38681484,0.00022532,2]
[373500565,1753023057597,-500.0,0.00022532,2]
[373500567,1753023057609,-252.36597427,0.00022532,2]
[373500569,1753023057619,-151.0,0.00022532,2]
[373500571,1753023057629,-151.0,0.00022532,2]
[373500573,1753023057639,-271.86983277,0.00022532,2]
[373500575,1753023057649,-122.96453143,0.00022532,2]
[373500578,1753023057660,-124.85658532,0.00022532,2]
[373500580,1753023057670,-544.35,0.00022619,5]
[373500582,1753023057679,-154.0,0.00022648,3]
[373500584,1753023057689,-2376.67944375,0.00022648,2]
[373500586,1753023057699,-151.0,0.000227,5]
[373500588,1753023057708,-700.0,0.00022708,2]
[373500590,1753023057718,-544.35,0.00022719,5]
[373500592,1753023057728,-630.4629754,0.00022739,2]
[373500594,1753023057741,-381.92818453,0.00022739,2]
[373500631,1753023058405,5000.0,0.000162,2]
[373501595,1753023069867,3311.60044976,0.000162,2]
[373501598,1753023069892,1688.39955024,0.000162,2]
[373502188,1753023100640,5000.0,0.000162,2]
[373502192,1753023305454,259.43716939,0.00015848,2]
[373502193,1753023379271,250.0,0.00015115,2]
[373502199,1753023451913,186.01374953,0.00016136,2]
[373502200,1753023514956,7852.6594064,0.00015336,2]
[373502201,1753023606823,155.66230163,0.00015838,2]
[373502202,1753023625427,1198.697648,0.00013699,2]
[373502204,1753023647183,1698.553453,0.00015332,2]
[373502205,1753023672513,1710.57672181,0.00015332,2]
[373502206,1753023672542,8248.39406509,0.00015332,2]
[373502208,1753023817964,6323.29,0.000162,2]
[373502210,1753023848234,5428.31593491,0.00015333,2]
[373502211,1753023848260,4571.68406509,0.00015333,2]
[373502215,1753023948378,5919.468944,0.00015334,2]
[373502217,1753023990964,9508.84699091,0.00015334,2]
[373502218,1753023990990,15391.15300909,0.00015334,2]
[373502226,1753024074449,200.0,0.00027397,120]
[373502272,1753024168714,174.85,0.00016062,2]
[373502280,1753024221074,1519.91708284,0.00016127,2]
[373502429,1753024237948,-256.24136673,0.00016225,2]
[373502430,1753024237962,-43.75863327,0.00016225,2]
[373502431,1753024237972,-187.0,0.00016225,2]
[373502432,1753024237982,-300.0,0.00016225,2]
[373502433,1753024237992,-830.78518535,0.00016225,2]
[373502434,1753024238003,-369.21481465,0.00016225,2]
[373502435,1753024238013,-159.68227653,0.00016226,2]
[373502436,1753024238024,-5339.89783594,0.00016226,2]
[373502437,1753024238041,-11081.43816514,0.00016226,2]
[373502438,1753024238050,-16581.0182776,0.00016227,2]
[373502439,1753024238060,-16581.0182776,0.00016227,2]
[373502440,1753024238069,-151.0,0.000163,2]
[373502441,1753024238078,-181.0,0.00016327,2]
[373502442,1753024238088,-943.60000011,0.00016328,2]
[373502443,1753024238097,-860.39,0.00016328,3]
[373502444,1753024238108,-430.2,0.00016328,3]
[373502445,1753024238117,-215.1,0.00016328,3]
[373502446,1753024238127,-645.32,0.00016328,3]
[373502447,1753024238136,-168.9866595,0.00016337,2]
[373502448,1753024238148,-337.88777539,0.00016337,2]
[373502449,1753024238157,-500.0,0.00016337,2]
[373502450,1753024238166,-193.78126873,0.00016337,2]
[373502451,1753024238175,-500.0,0.00016337,2]
[373502452,1753024238184,-271.62837944,0.00016337,2]
[373502453,1753024238194,-251.32409656,0.00016337,2]
[373502454,1753024238203,-411.94,0.00016337,2]
[373502455,1753024238212,-500.0,0.00016337,2]
[373502456,1753024238221,-500.0,0.00016337,2]
[373502457,1753024238230,-500.0,0.00016338,2]
[373502459,1753024238240,-1695.84133024,0.00016338,2]
[373502460,1753024238249,-7615.00287312,0.00016338,2]
[373502462,1753024238261,-200.53678732,0.00016338,2]
[373502464,1753024238270,-1521.73831259,0.00016338,2]
[373502465,1753024238286,-368478.26168741,0.00016338,2]
[373502466,1753024238295,-460.0,0.00016438,2]
[373502467,1753024238305,-460.0,0.00016438,2]
[373502468,1753024238314,-460.0,0.00016438,2]
[373502469,1753024238323,-460.0,0.00016438,2]
[373502470,1753024238332,-460.0,0.00016438,2]
[373502471,1753024238341,-463.58863773,0.00016438,2]
[373502472,1753024238350,-460.0,0.00016438,2]
[373502473,1753024238361,-427.36640257,0.00016438,2]
[373502474,1753024238370,-460.0,0.00016438,2]
[373502475,1753024238379,-460.0,0.00016438,2]
[373502476,1753024238388,-460.0,0.00016438,2]
[373502477,1753024238397,-460.0,0.00016438,2]
[373502478,1753024238407,-460.0,0.00016438,2]
[373502479,1753024238416,-460.0,0.00016438,2]
[373502480,1753024238425,-460.0,0.00016438,2]
[373502481,1753024238434,-460.0,0.00016438,2]
[373502482,1753024238444,-460.0,0.00016438,2]
[373502483,1753024238454,-460.0,0.00016438,2]
[373502484,1753024238463,-546.77238042,0.00016438,2]
[373502485,1753024238472,-398.63614994,0.00016438,2]
[373502486,1753024238481,-460.0,0.00016438,2]
[373502487,1753024238490,-502.79,0.00016438,2]
[373502488,1753024238500,-460.0,0.00016438,2]
[373502489,1753024238511,-503.12314946,0.00016438,2]
[373502490,1753024238521,-460.0,0.00016438,2]
[373502491,1753024238530,-205.93312287,0.00016438,2]
[373502492,1753024238540,-460.0,0.00016438,2]
[373502493,1753024238550,-460.0,0.00016438,2]
[373502494,1753024238560,-460.0,0.00016438,2]
[373502495,1753024238571,-434.02922962,0.00016438,2]
[373502496,1753024238582,-465.76679733,0.00016438,2]
[373502497,1753024238592,-460.0,0.00016438,2]
[373502498,1753024238601,-460.0,0.00016438,2]
[373502499,1753024238612,-460.0,0.00016438,2]
[373502500,1753024238621,-460.0,0.00016438,2]
[373502501,1753024238630,-460.0,0.00016438,2]
[373502502,1753024238640,-460.0,0.00016438,2]
[373502503,1753024238649,-460.0,0.00016438,2]
[373502504,1753024238659,-327.1861059,0.00016438,2]
[373502505,1753024238671,-460.0,0.00016438,2]
[373502506,1753024238680,-460.0,0.00016438,2]
[373502507,1753024238689,-460.0,0.00016438,2]
[373502508,1753024238698,-460.0,0.00016438,2]
[373502509,1753024238709,-1204.91,0.00016438,2]
[373502510,1753024238718,-460.0,0.00016438,2]
[373502511,1753024238728,-460.0,0.00016438,2]
[373502512,1753024238736,-460.0,0.00016438,2]
[373502513,1753024238746,-460.0,0.00016438,2]
[373502514,1753024238756,-460.0,0.00016438,2]
[373502515,1753024238765,-460.0,0.00016438,2]
[373502516,1753024238775,-337.8812761,0.00016438,2]
[373502517,1753024238785,-460.0,0.00016438,2]
[373502518,1753024238796,-460.0,0.00016438,2]
[373502519,1753024238805,-460.0,0.00016438,2]
[373502520,1753024238815,-400.00000075,0.00016438,2]
[373502521,1753024238825,-460.0,0.00016438,2]
[373502522,1753024238834,-460.0,0.00016438,2]
[373502523,1753024238843,-464.6107008,0.00016438,2]
[373502524,1753024238852,-460.0,0.00016438,2]
[373502525,1753024238863,-460.0,0.00016438,2]
[373502526,1753024238873,-460.0,0.00016438,2]
[373502527,1753024238882,-460.0,0.00016438,2]
[373502528,1753024238891,-460.0,0.00016438,2]
[373502529,1753024238901,-491.79,0.00016438,2]
[373502530,1753024238911,-460.0,0.00016438,2]
[373502531,1753024238920,-460.0,0.00016438,2]
[373502532,1753024238930,-460.0,0.00016438,2]
[373502533,1753024238939,-460.0,0.00016438,2]
[373502534,1753024238948,-460.0,0.00016438,2]
[373502535,1753024238958,-460.0,0.00016438,2]
[373502536,1753024238967,-460.0,0.00016438,2]
[373502537,1753024238977,-2144.03,0.00016438,2]
[373502538,1753024238986,-460.0,0.00016438,2]
[373502539,1753024238995,-460.0,0.00016438,2]
[373502540,1753024239004,-460.0,0.00016438,2]
[373502541,1753024239013,-460.0,0.00016438,2]
[373502542,1753024239022,-468.36982263,0.00016438,2]
[373502543,1753024239032,-460.0,0.00016438,2]
[373502544,1753024239041,-460.0,0.00016438,2]
[373502545,1753024239051,-460.0,0.00016438,2]
[373502546,1753024239060,-460.0,0.00016438,2]
[373502547,1753024239070,-460.0,0.00016438,2]
[373502548,1753024239079,-460.0,0.00016438,2]
[373502549,1753024239088,-460.0,0.00016438,2]
[373502550,1753024239097,-460.0,0.00016438,2]
[373502551,1753024239107,-460.0,0.00016438,2]
[373502552,1753024239117,-460.0,0.00016438,2]
[373502553,1753024239127,-460.0,0.00016438,2]
[373502554,1753024239137,-460.0,0.00016438,2]
[373502555,1753024239146,-460.0,0.00016438,2]
[373502556,1753024239156,-4843.49,0.00016438,2]
[373502557,1753024239165,-460.0,0.00016438,2]
[373502558,1753024239174,-460.0,0.00016438,2]
[373502559,1753024239184,-460.0,0.00016438,2]
[373502560,1753024239193,-460.0,0.00016438,2]
[373502561,1753024239202,-460.0,0.00016438,2]
[373502562,1753024239211,-460.0,0.00016438,2]
[373502563,1753024239220,-460.0,0.00016438,2]
[373502564,1753024239229,-460.0,0.00016438,2]
[373502565,1753024239239,-460.0,0.00016438,2]
[373502566,1753024239248,-460.0,0.00016438,2]
[373502567,1753024239259,-1237.85,0.00016438,2]
[373502568,1753024239268,-460.0,0.00016438,2]
[373502569,1753024239279,-483.48,0.00016438,2]
[373502570,1753024239290,-460.0,0.00016438,2]
[373502571,1753024239299,-460.0,0.00016438,2]
[373502572,1753024239309,-460.0,0.00016438,2]
[373502573,1753024239319,-3981.81,0.00016438,2]
[373502574,1753024239328,-377.55114959,0.00016438,2]
[373502575,1753024239339,-460.0,0.00016438,2]
[373502576,1753024239348,-460.0,0.00016438,2]
[373502577,1753024239359,-460.0,0.00016438,2]
[373502578,1753024239369,-460.0,0.00016438,2]
[373502579,1753024239378,-460.0,0.00016438,2]
[373502580,1753024239388,-362.84614954,0.00016438,2]
[373502581,1753024239397,-460.0,0.00016438,2]
[373502582,1753024239406,-460.0,0.00016438,2]
[373502583,1753024239416,-460.0,0.00016438,2]
[373502584,1753024239425,-460.0,0.00016438,2]
[373502586,1753024239435,-460.0,0.00016438,2]
[373502587,1753024239444,-460.0,0.00016438,2]
[373502588,1753024239454,-460.0,0.00016438,2]
[373502589,1753024239465,-460.0,0.00016438,2]
[373502590,1753024239474,-460.0,0.00016438,2]
[373502591,1753024239483,-460.0,0.00016438,2]
[373502592,1753024239492,-460.0,0.00016438,2]
[373502593,1753024239502,-460.0,0.00016438,2]
[373502594,1753024239511,-460.0,0.00016438,2]
[373502596,1753024239521,-460.0,0.00016438,2]
[373502597,1753024239530,-460.0,0.00016438,2]
[373502598,1753024239539,-460.0,0.00016438,2]
[373502599,1753024239549,-460.0,0.00016438,2]
[373502600,1753024239558,-1155.02,0.00016438,2]
[373502601,1753024239567,-381.90173859,0.00016438,2]
[373502602,1753024239576,-460.0,0.00016438,2]
[373502604,1753024239585,-460.0,0.00016438,2]
[373502606,1753024239594,-496.19406,0.00016438,2]
[373502607,1753024239603,-460.0,0.00016438,2]
[373502608,1753024239613,-460.0,0.00016438,2]
[373502610,1753024239623,-460.0,0.00016438,2]
[373502612,1753024239632,-460.0,0.00016438,2]
[373502613,1753024239642,-460.0,0.00016438,2]
[373502614,1753024239652,-250.57475707,0.00016438,2]
[373502615,1753024239662,-460.0,0.00016438,2]
[373502616,1753024239675,-460.0,0.00016438,2]
[373502617,1753024239685,-460.0,0.00016438,2]
[373502618,1753024239694,-460.0,0.00016438,2]
[373502619,1753024239704,-1417.78,0.00016438,2]
[373502620,1753024239714,-460.0,0.00016438,2]
[373502621,1753024239724,-460.0,0.00016438,2]
[373502622,1753024239734,-460.0,0.00016438,2]
[373502623,1753024239744,-460.0,0.00016438,2]
[373502625,1753024239754,-460.0,0.00016438,2]
[373502626,1753024239764,-460.0,0.00016438,2]
[373502628,1753024239774,-190.23465194,0.00016438,2]
[373502630,1753024239784,-460.0,0.00016438,2]
[373502632,1753024239793,-460.0,0.00016438,2]
[373502634,1753024239803,-569.14,0.00016438,2]
[373502635,1753024239812,-1607.28,0.00016438,2]
[373502637,1753024239822,-460.0,0.00016438,2]
[373502638,1753024239831,-460.0,0.00016438,2]
[373502640,1753024239841,-460.0,0.00016438,2]
[373502642,1753024239850,-460.0,0.00016438,2]
[373502644,1753024239861,-460.0,0.00016438,2]
[373502646,1753024239870,-460.0,0.00016438,2]
[373502654,1753024240025,-460.0,0.00016438,2]
[373502655,1753024240035,-460.0,0.00016438,2]
[373502656,1753024240044,-460.0,0.00016438,2]
[373502657,1753024240054,-460.0,0.00016438,2]
[373502658,1753024240063,-460.0,0.00016438,2]
[373502660,1753024240073,-460.0,0.00016438,2]
[373502662,1753024240083,-460.0,0.00016438,2]
[373502664,1753024240092,-460.0,0.00016438,2]
[373502666,1753024240101,-460.0,0.00016438,2]
[373502667,1753024240112,-526.57,0.00016438,2]
[373502669,1753024240122,-460.0,0.00016438,2]
[373502671,1753024240131,-460.0,0.00016438,2]
[373502674,1753024240141,-460.0,0.00016438,2]
[373502675,1753024240151,-460.0,0.00016438,2]
[373502676,1753024240160,-460.0,0.00016438,2]
[373502677,1753024240170,-460.0,0.00016438,2]
[373502679,1753024240179,-460.0,0.00016438,2]
[373502680,1753024240190,-2632.32,0.00016438,2]
[373502681,1753024240199,-460.0,0.00016438,2]
[373502682,1753024240209,-460.0,0.00016438,2]
[373502683,1753024240218,-460.0,0.00016438,2]
[373502684,1753024240227,-460.0,0.00016438,2]
[373502685,1753024240237,-1706.81,0.00016438,2]
[373502686,1753024240246,-460.0,0.00016438,2]
[373502687,1753024240255,-460.0,0.00016438,2]
[373502688,1753024240265,-460.0,0.00016438,2]
[373502689,1753024240274,-460.0,0.00016438,2]
[373502691,1753024240283,-552.96923944,0.00016438,2]
[373502692,1753024240292,-610.02,0.00016438,2]
[373502693,1753024240302,-460.0,0.00016438,2]
[373502694,1753024240311,-1837.71,0.00016438,2]
[373502695,1753024240320,-460.0,0.00016438,2]
[373502696,1753024240330,-460.0,0.00016438,2]
[373502697,1753024240339,-460.0,0.00016438,2]
[373502698,1753024240348,-460.0,0.00016438,2]
[373502699,1753024240358,-460.0,0.00016438,2]
[373502700,1753024240368,-460.0,0.00016438,2]
[373502701,1753024240378,-460.0,0.00016438,2]
[373502702,1753024240388,-460.0,0.00016438,2]
[373502703,1753024240397,-460.0,0.00016438,2]
[373502704,1753024240407,-460.0,0.00016438,2]
[373502705,1753024240416,-460.0,0.00016438,2]
[373502706,1753024240425,-460.0,0.00016438,2]
[373502707,1753024240434,-460.0,0.00016438,2]
[373502708,1753024240444,-460.0,0.00016438,2]
[373502709,1753024240453,-516.74,0.00016438,2]
[373502710,1753024240462,-505.86,0.00016438,2]
[373502711,1753024240471,-460.0,0.00016438,2]
[373502712,1753024240481,-460.0,0.00016438,2]
[373502713,1753024240490,-460.0,0.00016438,2]
[373502714,1753024240500,-800.41,0.00016438,2]
[373502715,1753024240509,-463.17452599,0.00016438,2]
[373502716,1753024240518,-460.0,0.00016438,2]
[373502717,1753024240527,-911.32,0.00016438,2]
[373502718,1753024240536,-460.0,0.00016438,2]
[373502719,1753024240546,-460.0,0.00016438,2]
[373502720,1753024240555,-501.5687008,0.00016438,2]
[373502721,1753024240564,-660.01,0.00016438,2]
[373502722,1753024240574,-460.0,0.00016438,2]
[373502723,1753024240584,-526.80176444,0.00016438,2]
[373502724,1753024240593,-460.0,0.00016438,2]
[373502725,1753024240603,-460.0,0.00016438,2]
[373502726,1753024240614,-460.0,0.00016438,2]
[373502727,1753024240623,-471.97041884,0.00016438,2]
[373502728,1753024240633,-460.0,0.00016438,2]
[373502729,1753024240643,-460.0,0.00016438,2]
[373502730,1753024240652,-460.0,0.00016438,2]
[373502731,1753024240664,-460.0,0.00016438,2]
[373502732,1753024240674,-460.0,0.00016438,2]
[373502733,1753024240684,-460.0,0.00016438,2]
[373502734,1753024240694,-460.0,0.00016438,2]
[373502735,1753024240703,-392.73480282,0.00016438,2]
[373502736,1753024240713,-460.0,0.00016438,2]
[373502737,1753024240723,-460.0,0.00016438,2]
[373502738,1753024240733,-460.0,0.00016438,2]
[373502739,1753024240745,-460.0,0.00016438,2]
[373502740,1753024240755,-460.0,0.00016438,2]
[373502741,1753024240764,-460.0,0.00016438,2]
[373502742,1753024240773,-460.0,0.00016438,2]
[373502743,1753024240783,-460.0,0.00016438,2]
[373502744,1753024240792,-1083.37,0.00016438,2]
[373502745,1753024240802,-460.0,0.00016438,2]
[373502746,1753024240811,-460.0,0.00016438,2]
[373502747,1753024240820,-1652.76,0.00016438,2]
[373502748,1753024240831,-460.0,0.00016438,2]
[373502749,1753024240840,-460.0,0.00016438,2]
[373502750,1753024240850,-460.0,0.00016438,2]
[373502751,1753024240861,-559.65155913,0.00016438,2]
[373502752,1753024240871,-610.94,0.00016438,2]
[373502753,1753024240880,-460.0,0.00016438,2]
[373502754,1753024240890,-460.0,0.00016438,2]
[373502755,1753024240899,-460.0,0.00016438,2]
[373502756,1753024240908,-460.0,0.00016438,2]
[373502757,1753024240918,-460.0,0.00016438,2]
[373502758,1753024240927,-460.0,0.00016438,2]
[373502759,1753024240937,-500.74,0.00016438,2]
[373502760,1753024240946,-460.0,0.00016438,2]
[373502761,1753024240956,-575.9,0.00016438,2]
[373502762,1753024240965,-460.0,0.00016438,2]
[373502763,1753024240976,-460.0,0.00016438,2]
[373502764,1753024240985,-460.0,0.00016438,2]
[373502765,1753024240995,-887.74,0.00016438,2]
[373502766,1753024241004,-460.0,0.00016438,2]
[373502767,1753024241014,-425.45259592,0.00016438,2]
[373502768,1753024241023,-460.0,0.00016438,2]
[373502769,1753024241033,-460.0,0.00016438,2]
[373502770,1753024241043,-460.0,0.00016438,2]
[373502771,1753024241052,-460.0,0.00016438,2]
[373502772,1753024241061,-460.0,0.00016438,2]
[373502773,1753024241071,-460.0,0.00016438,2]
[373502774,1753024241081,-460.0,0.00016438,2]
[373502775,1753024241090,-460.0,0.00016438,2]
[373502776,1753024241100,-1920.16,0.00016438,2]
[373502777,1753024241111,-460.0,0.00016438,2]
[373502778,1753024241121,-460.0,0.00016438,2]
[373502779,1753024241130,-460.0,0.00016438,2]
[373502780,1753024241139,-727.42,0.00016438,2]
[373502781,1753024241149,-460.0,0.00016438,2]
[373502782,1753024241159,-460.0,0.00016438,2]
[373502783,1753024241170,-1924.42,0.00016438,2]
[373502784,1753024241180,-517.56,0.00016438,2]